fUSD/lending_fUSD_20250314
["ID","MTS","AMOUNT","RATE_DAILY","PERIOD"]
[356130331,1741936853965,-500.0,0.00021972,3]
[356130332,1741936854012,-151.0,0.00021972,7]
[356130333,1741936854058,-557.6,0.00021972,3]
[356130334,1741936854101,-500.0,0.00021972,3]
[356130335,1741936854147,-500.0,0.00021972,3]
[356130336,1741936854191,-916.26,0.00021972,3]
[356130337,1741936854239,-651.4,0.00021972,3]
[356130338,1741936854285,-500.0,0.00021972,3]
[356130339,1741936854332,-500.0,0.00021972,3]
[356130340,1741936854378,-2320.22,0.00021972,3]
[356130341,1741936854423,-500.0,0.00021972,3]
[356130342,1741936854468,-500.0,0.00021972,3]
[356130343,1741936854515,-500.0,0.00021972,3]
[356130344,1741936854560,-644.81,0.00021972,3]
[356130345,1741936854606,-500.0,0.00021972,3]
[356130346,1741936854651,-651.11,0.00021972,3]
[356130347,1741936854703,-500.0,0.00021972,3]
[356130348,1741936854749,-500.0,0.00021972,3]
[356130349,1741936854799,-500.0,0.00021972,3]
[356130350,1741936854845,-500.0,0.00021972,3]
[356130351,1741936854892,-640.04,0.00021972,3]
[356130352,1741936854939,-500.0,0.00021972,3]
[356130353,1741936854988,-1360.83,0.00021972,3]
[356130354,1741936855037,-500.0,0.00021972,3]
[356130355,1741936855085,-500.0,0.00021972,3]
[356130356,1741936855132,-500.0,0.00021972,3]
[356130357,1741936855178,-500.0,0.00021972,3]
[356130358,1741936855223,-500.0,0.00021972,3]
[356130359,1741936855270,-500.0,0.00021972,3]
[356130360,1741936855317,-151.0,0.00021972,7]
[356130361,1741936855365,-630.93,0.00021972,3]
[356130362,1741936855411,-500.0,0.00021972,3]
[356130363,1741936855460,-655.53,0.00021972,3]
[356130364,1741936855507,-662.11,0.00021972,3]
[356130365,1741936855553,-598.3,0.00021972,3]
[356130366,1741936855598,-213.35554062,0.00021972,3]
[356130367,1741936855644,-500.0,0.00021972,3]
[356130368,1741936855695,-1138.98,0.00021972,3]
[356130369,1741936855741,-500.0,0.00021972,3]
[356130370,1741936855788,-640.1,0.00021972,3]
[356130371,1741936855836,-500.0,0.00021972,3]
[356130372,1741936855883,-626.98,0.00021972,3]
[356130373,1741936855931,-500.0,0.00021972,3]
[356130374,1741936855981,-500.0,0.00021972,3]
[356130375,1741936856031,-1232.74,0.00021972,3]
[356130376,1741936856081,-870.34,0.00021972,3]
[356130377,1741936856129,-556.09,0.00021972,3]
[356130378,1741936856177,-500.0,0.00021972,3]
[356130379,1741936856225,-500.0,0.00021972,3]
[356130380,1741936856273,-500.0,0.00021972,3]
[356130381,1741936856319,-500.0,0.00021972,3]
[356130382,1741936856368,-500.0,0.00021972,3]
[356130383,1741936856416,-500.0,0.00021972,3]
[356130384,1741936856460,-500.0,0.00021972,3]
[356130385,1741936856506,-500.0,0.00021972,3]
[356130386,1741936856551,-1335.59,0.00021972,3]
[356130387,1741936856598,-512.75,0.00021972,3]
[356130388,1741936856645,-500.0,0.00021972,3]
[356130389,1741936856696,-600.89,0.00021972,3]
[356130390,1741936856743,-500.0,0.00021972,3]
[356130391,1741936856792,-829.85,0.00021972,3]
[356130392,1741936856846,-500.0,0.00021972,3]
[356130393,1741936856896,-500.0,0.00021972,3]
[356130394,1741936856945,-500.0,0.00021972,3]
[356130395,1741936856995,-782.12,0.00021972,3]
[356130396,1741936857044,-500.0,0.00021972,3]
[356130397,1741936857100,-641.01144808,0.00021972,3]
[356130398,1741936857152,-942.36,0.00021972,3]
[356130399,1741936857201,-500.0,0.00021972,3]
[356130400,1741936857499,-661.22,0.00021972,3]
[356130401,1741936857546,-500.0,0.00021972,3]
[356130402,1741936857594,-1002.37,0.00021972,3]
[356130403,1741936857645,-500.0,0.00021972,3]
[356130404,1741936857698,-500.0,0.00021972,3]
[356130405,1741936857749,-500.0,0.00021972,3]
[356130406,1741936857797,-203.03867222,0.00021972,3]
[356130407,1741936857843,-527.1,0.00021972,3]
[356130408,1741936857892,-636.71,0.00021972,3]
[356130409,1741936857938,-507.91,0.00021972,3]
[356130410,1741936857988,-500.0,0.00021972,3]
[356130411,1741936858036,-1121.93,0.00021972,3]
[356130412,1741936858084,-738.18,0.00021972,3]
[356130413,1741936858134,-500.0,0.00021972,3]
[356130414,1741936858182,-500.0,0.00021972,3]
[356130415,1741936858227,-1082.27,0.00021972,3]
[356130416,1741936858273,-501.07,0.00021972,3]
[356130417,1741936858318,-500.0,0.00021972,3]
[356130418,1741936858364,-500.0,0.00021972,3]
[356130419,1741936858407,-552.93894682,0.00021972,3]
[356130420,1741936858452,-500.0,0.00021972,3]
[356130421,1741936858497,-500.0,0.00021972,3]
[356130422,1741936858544,-1930.48,0.00021972,3]
[356130423,1741936858589,-792.57,0.00021972,3]
[356130424,1741936858634,-646.68,0.00021972,3]
[356130425,1741936858679,-500.0,0.00021972,3]
[356130426,1741936858725,-501.06,0.00021972,3]
[356130427,1741936858771,-1237.94,0.00021972,3]
[356130428,1741936858817,-809.56,0.00021972,3]
[356130429,1741936858863,-648.13,0.00021972,3]
[356130430,1741936858909,-1440.13,0.00021972,3]
[356130431,1741936858955,-500.0,0.00021972,3]
[356130432,1741936859003,-500.0,0.00021972,3]
[356130433,1741936859050,-512.92,0.00021972,3]
[356130434,1741936859097,-574.09,0.00021972,3]
[356130435,1741936859142,-500.0,0.00021972,3]
[356130436,1741936859189,-500.0,0.00021972,3]
[356130437,1741936859234,-534.47,0.00021972,3]
[356130438,1741936859281,-500.0,0.00021972,3]
[356130439,1741936859326,-500.0,0.00021972,3]
[356130440,1741936859371,-500.0,0.00021972,3]
[356130441,1741936859414,-500.0,0.00021972,3]
[356130442,1741936859461,-173.534334,0.00021972,7]
[356130443,1741936859505,-500.0,0.00021972,3]
[356130444,1741936859550,-500.0,0.00021972,3]
[356130445,1741936859594,-544.01825465,0.00021972,3]
[356130446,1741936859639,-173.534334,0.00021972,7]
[356130447,1741936859682,-387.06617583,0.00021972,3]
[356130448,1741936859727,-500.0,0.00021972,3]
[356130449,1741936859774,-500.0,0.00021972,3]
[356130450,1741936859823,-500.0,0.00021972,3]
[356130451,1741936859872,-500.0,0.00021972,3]
[356130452,1741936859919,-500.0,0.00021972,3]
[356130453,1741936859968,-500.0,0.00021972,3]
[356130454,1741936860015,-500.0,0.00021972,3]
[356130455,1741936860066,-500.0,0.00021972,3]
[356130456,1741936860115,-500.0,0.00021972,3]
[356130457,1741936860167,-500.0,0.00021972,3]
[356130458,1741936860223,-1070.2,0.00021972,3]
[356130459,1741936860273,-500.0,0.00021972,3]
[356130460,1741936860324,-2035.33,0.00021972,3]
[356130461,1741936860373,-1063.85,0.00021972,3]
[356130462,1741936860422,-1106.92,0.00021972,3]
[356130463,1741936860469,-500.0,0.00021972,3]
[356130464,1741936860517,-957.68,0.00021972,3]
[356130465,1741936860563,-500.0,0.00021972,3]
[356130466,1741936860609,-500.0,0.00021972,3]
[356130467,1741936860653,-500.0,0.00021972,3]
[356130468,1741936860704,-500.0,0.00021972,3]
[356130469,1741936860750,-500.0,0.00021972,3]
[356130470,1741936860804,-151.0,0.00021972,2]
[356130471,1741936860854,-749.54,0.00021972,3]
[356130472,1741936860900,-151.0,0.00021972,2]
[356130473,1741936860947,-500.0,0.00021972,3]
[356130474,1741936860996,-151.0,0.00021972,2]
[356130475,1741936861045,-151.0,0.00021972,2]
[356130476,1741936861095,-151.0,0.00021972,2]
[356130477,1741936861144,-151.0,0.00021972,2]
[356130478,1741936861191,-151.0,0.00021972,2]
[356130479,1741936861238,-151.0,0.00021972,2]
[356130480,1741936861286,-151.0,0.00021972,2]
[356130481,1741936861335,-151.0,0.00021972,2]
[356130482,1741936861385,-151.0,0.00021972,2]
[356130483,1741936861434,-151.0,0.00021972,2]
[356130484,1741936861482,-500.0,0.00021972,3]
[356130485,1741936861532,-500.0,0.00021972,3]
[356130486,1741936861582,-151.0,0.00021972,2]
[356130487,1741936861633,-151.0,0.00021972,2]
[356130488,1741936861687,-151.0,0.00021972,2]
[356130489,1741936861739,-151.0,0.00021972,2]
[356130490,1741936861790,-151.0,0.00021972,2]
[356130491,1741936861840,-151.0,0.00021972,2]
[356130492,1741936861887,-900.62,0.00021972,3]
[356130493,1741936861938,-151.0,0.00021972,2]
[356130494,1741936862065,-151.0,0.00021972,2]
[356130495,1741936862114,-151.0,0.00021972,2]
[356130496,1741936862160,-500.0,0.00021972,3]
[356130497,1741936862207,-151.0,0.00021972,2]
[356130498,1741936862254,-151.0,0.00021972,2]
[356130499,1741936862302,-151.0,0.00021972,2]
[356130500,1741936862348,-151.0,0.00021972,2]
[356130501,1741936862397,-151.0,0.00021972,2]
[356130502,1741936862442,-151.0,0.00021972,2]
[356130503,1741936862490,-1183.4,0.00021972,3]
[356130504,1741936862538,-151.0,0.00021972,2]
[356130505,1741936862587,-500.0,0.00021972,3]
[356130506,1741936862635,-151.0,0.00021972,2]
[356130507,1741936862681,-354.897348,0.00021972,7]
[356130508,1741936862727,-151.0,0.00021972,2]
[356130509,1741936862782,-2463.06,0.00021972,3]
[356130510,1741936862831,-151.0,0.00021972,2]
[356130511,1741936862879,-151.0,0.00021972,2]
[356130512,1741936862926,-151.0,0.00021972,2]
[356130513,1741936862972,-151.0,0.00021972,2]
[356130514,1741936863021,-151.0,0.00021972,2]
[356130515,1741936863073,-151.0,0.00021972,2]
[356130516,1741936863122,-151.0,0.00021972,2]
[356130517,1741936863173,-354.897348,0.00021972,7]
[356130518,1741936863222,-151.0,0.00021972,2]
[356130519,1741936863270,-151.0,0.00021972,2]
[356130520,1741936863319,-151.0,0.00021972,2]
[356130521,1741936863368,-151.0,0.00021972,2]
[356130522,1741936863416,-151.0,0.00021972,2]
[356130523,1741936863463,-151.0,0.00021972,2]
[356130524,1741936863509,-500.0,0.00021972,3]
[356130525,1741936863554,-151.0,0.00021972,2]
[356130526,1741936863600,-500.0,0.00021972,3]
[356130527,1741936863646,-151.0,0.00021972,2]
[356130528,1741936863697,-151.0,0.00021972,2]
[356130529,1741936863744,-907.67,0.00021972,3]
[356130530,1741936863795,-151.0,0.00021972,2]
[356130531,1741936863845,-1751.54,0.00021972,3]
[356130532,1741936863895,-151.0,0.00021972,2]
[356130533,1741936863948,-151.0,0.00021972,2]
[356130534,1741936864000,-659.53,0.00021972,3]
[356130535,1741936864051,-151.0,0.00021972,2]
[356130536,1741936864100,-151.0,0.00021972,2]
[356130537,1741936864150,-151.0,0.00021972,2]
[356130538,1741936864198,-151.0,0.00021972,2]
[356130539,1741936864250,-151.0,0.00021972,2]
[356130540,1741936864299,-151.0,0.00021972,2]
[356130541,1741936864351,-151.0,0.00021972,2]
[356130542,1741936864410,-151.0,0.00021972,2]
[356130543,1741936864466,-500.0,0.00021972,3]
[356130544,1741936864513,-151.0,0.00021972,2]
[356130545,1741936864560,-151.0,0.00021972,2]
[356130546,1741936864608,-500.0,0.00021972,3]
[356130547,1741936864658,-151.0,0.00021972,2]
[356130548,1741936864706,-500.0,0.00021972,3]
[356130549,1741936864754,-151.0,0.00021972,2]
[356130550,1741936864802,-204.552835,0.00021972,2]
[356130551,1741936864848,-500.0,0.00021972,3]
[356130552,1741936864895,-301.236634,0.00021972,7]
[356130553,1741936864944,-638.1,0.00021972,3]
[356130554,1741936864992,-576.08,0.00021972,3]
[356130555,1741936865041,-500.0,0.00021972,3]
[356130556,1741936865089,-500.0,0.00021972,3]
[356130557,1741936865137,-500.0,0.00021972,3]
[356130558,1741936865183,-605.51,0.00021972,3]
[356130559,1741936865232,-500.0,0.00021972,3]
[356130560,1741936865278,-500.0,0.00021972,3]
[356130561,1741936865324,-500.0,0.00021972,3]
[356130562,1741936865372,-500.0,0.00021972,3]
[356130563,1741936865417,-500.0,0.00021972,3]
[356130564,1741936865464,-626.879335,0.00021972,7]
[356130565,1741936865509,-150.30865981,0.00021973,2]
[356130566,1741936865558,-500.0,0.00021999,3]
[356130567,1741936865604,-500.0,0.00021999,3]
[356130568,1741936865652,-500.0,0.00021999,3]
[356130569,1741936865703,-500.0,0.00021999,3]
[356130570,1741936865750,-500.0,0.00021999,3]
[356130571,1741936865798,-500.0,0.00021999,3]
[356130572,1741936865844,-500.0,0.00021999,3]
[356130573,1741936865890,-217.64263702,0.00021999,3]
[356130574,1741936865940,-500.0,0.00021999,3]
[356130575,1741936865989,-500.0,0.00021999,3]
[356130576,1741936866040,-1173.12,0.00021999,3]
[356130577,1741936866089,-500.0,0.00021999,3]
[356130578,1741936866139,-601.62181265,0.00021999,3]
[356130579,1741936866187,-500.0,0.00021999,3]
[356130580,1741936866234,-359.76,0.00021999,3]
[356130581,1741936866280,-500.0,0.00021999,3]
[356130582,1741936866326,-824.92,0.00021999,3]
[356130583,1741936866371,-248.73297323,0.00021999,3]
[356130584,1741936866417,-500.0,0.00021999,3]
[356130585,1741936866460,-1170.76,0.00021999,3]
[356130586,1741936866505,-500.0,0.00021999,3]
[356130587,1741936866548,-563.47,0.00021999,3]
[356130588,1741936866594,-724.09,0.00021999,3]
[356130589,1741936866640,-500.0,0.00021999,3]
[356130590,1741936866686,-500.0,0.00021999,3]
[356130591,1741936866731,-510.74946707,0.00021999,3]
[356130592,1741936866778,-500.0,0.00021999,3]
[356130593,1741936866822,-363.12565441,0.00021999,3]
[356130594,1741936866867,-500.0,0.00021999,3]
[356130595,1741936866913,-680.44,0.00021999,3]
[356130596,1741936866960,-500.0,0.00021999,3]
[356130597,1741936867007,-501.78901378,0.00021999,3]
[356130598,1741936867055,-500.0,0.00021999,3]
[356130599,1741936867101,-1067.37,0.00021999,3]
[356130600,1741936867148,-682.16,0.00021999,3]
[356130601,1741936867194,-500.0,0.00021999,3]
[356130602,1741936867244,-500.0,0.00021999,3]
[356130603,1741936867291,-1272.63,0.00021999,3]
[356130604,1741936867339,-500.0,0.00021999,3]
[356130605,1741936867387,-510.93,0.00021999,3]
[356130606,1741936867438,-500.0,0.00021999,3]
[356130607,1741936867484,-500.0,0.00021999,3]
[356130608,1741936867535,-615.94,0.00021999,3]
[356130609,1741936867585,-500.0,0.00021999,3]
[356130610,1741936867635,-500.0,0.00021999,3]
[356130611,1741936867684,-500.0,0.00021999,3]
[356130612,1741936867733,-500.0,0.00021999,3]
[356130613,1741936867783,-500.0,0.00021999,3]
[356130614,1741936867834,-540.37,0.00021999,3]
[356130615,1741936867881,-1269.96,0.00021999,3]
[356130616,1741936867930,-500.0,0.00021999,3]
[356130617,1741936867979,-500.0,0.00021999,3]
[356130618,1741936868029,-500.0,0.00021999,3]
[356130619,1741936868078,-509.93,0.00021999,3]
[356130620,1741936868130,-596.66,0.00021999,3]
[356130621,1741936868180,-500.0,0.00021999,3]
[356130622,1741936868230,-500.0,0.00021999,3]
[356130623,1741936868282,-741.98,0.00021999,3]
[356130624,1741936868331,-500.0,0.00021999,3]
[356130625,1741936868377,-159.77931226,0.00021999,3]
[356130626,1741936868425,-500.0,0.00021999,3]
[356130627,1741936868473,-1220.36,0.00021999,3]
[356130628,1741936868521,-500.0,0.00021999,3]
[356130629,1741936868568,-500.0,0.00021999,3]
[356130630,1741936868616,-500.0,0.00021999,3]
[356130631,1741936868667,-566.55,0.00021999,3]
[356130632,1741936868714,-500.0,0.00021999,3]
[356130633,1741936868762,-500.0,0.00021999,3]
[356130634,1741936868814,-500.0,0.00021999,3]
[356130635,1741936868862,-500.0,0.00021999,3]
[356130636,1741936868911,-614.84,0.00021999,3]
[356130637,1741936868961,-500.0,0.00021999,3]
[356130638,1741936869012,-500.0,0.00021999,3]
[356130639,1741936869065,-558.63,0.00021999,3]
[356130640,1741936869115,-500.0,0.00021999,3]
[356130641,1741936869165,-583.61,0.00021999,3]
[356130642,1741936869213,-500.0,0.00021999,3]
[356130643,1741936869265,-500.0,0.00021999,3]
[356130644,1741936869311,-867.64,0.00021999,3]
[356130645,1741936869358,-500.0,0.00021999,3]
[356130646,1741936869405,-500.0,0.00021999,3]
[356130647,1741936869454,-500.0,0.00021999,3]
[356130648,1741936869498,-1548.19,0.00021999,3]
[356130649,1741936869545,-500.0,0.00021999,3]
[356130650,1741936869590,-1354.02,0.00021999,3]
[356130651,1741936869635,-500.0,0.00021999,3]
[356130652,1741936869679,-500.0,0.00021999,3]
[356130653,1741936869726,-500.0,0.00021999,3]
[356130654,1741936869773,-500.0,0.00021999,3]
[356130655,1741936869821,-500.0,0.00021999,3]
[356130656,1741936869869,-500.0,0.00021999,3]
[356130657,1741936869919,-502.92716438,0.00021999,3]
[356130658,1741936869967,-500.0,0.00021999,3]
[356130659,1741936870016,-500.0,0.00021999,3]
[356130660,1741936870066,-500.0,0.00021999,3]
[356130661,1741936870115,-500.0,0.00021999,3]
[356130662,1741936870163,-603.93178764,0.00021999,3]
[356130663,1741936870211,-529.42,0.00021999,3]
[356130664,1741936870257,-596.64,0.00021999,3]
[356130665,1741936870304,-275.55960262,0.00021999,2]
[356130666,1741936870350,-500.0,0.00021999,3]
[356130667,1741936870398,-575.35,0.00021999,3]
[356130668,1741936870444,-500.0,0.00021999,3]
[356130669,1741936870493,-500.0,0.00021999,3]
[356130670,1741936870539,-500.0,0.00021999,3]
[356130671,1741936870586,-500.0,0.00021999,3]
[356130672,1741936870632,-500.0,0.00021999,3]
[356130673,1741936870679,-500.0,0.00021999,3]
[356130674,1741936870725,-500.0,0.00021999,3]
[356130675,1741936870770,-500.0,0.00021999,3]
[356130676,1741936870815,-500.0,0.00021999,3]
[356130677,1741936870864,-597.12,0.00021999,3]
[356130678,1741936870911,-648.45,0.00021999,3]
[356130679,1741936870959,-569.6,0.00021999,3]
[356130680,1741936871006,-500.0,0.00021999,3]
[356130681,1741936871054,-627.74,0.00021999,3]
[356130682,1741936871101,-500.0,0.00021999,3]
[356130683,1741936871148,-500.0,0.00021999,3]
[356130684,1741936871193,-500.0,0.00021999,3]
[356130685,1741936871238,-500.0,0.00021999,3]
[356130686,1741936871284,-691.7,0.00021999,3]
[356130687,1741936871542,-500.0,0.00021999,3]
[356130688,1741936871588,-500.0,0.00021999,3]
[356130689,1741936871634,-500.0,0.00021999,3]
[356130690,1741936871677,-500.0,0.00021999,3]
[356130691,1741936871721,-500.0,0.00021999,3]
[356130692,1741936871765,-500.0,0.00021999,3]
[356130693,1741936871810,-500.0,0.00021999,3]
[356130694,1741936871856,-500.0,0.00021999,3]
[356130695,1741936871902,-500.0,0.00021999,3]
[356130696,1741936871948,-500.0,0.00021999,3]
[356130697,1741936871998,-500.0,0.00021999,3]
[356130698,1741936872049,-500.0,0.00021999,3]
[356130699,1741936872098,-500.0,0.00021999,3]
[356130700,1741936872144,-692.8,0.00021999,3]
[356130701,1741936872189,-820.39,0.00021999,3]
[356130702,1741936872235,-500.0,0.00021999,3]
[356130703,1741936872284,-500.0,0.00021999,3]
[356130704,1741936872330,-500.0,0.00021999,3]
[356130705,1741936872376,-500.0,0.00021999,3]
[356130706,1741936872422,-500.0,0.00021999,3]
[356130707,1741936872470,-500.0,0.00021999,3]
[356130708,1741936872516,-500.0,0.00021999,3]
[356130709,1741936872567,-926.76,0.00021999,3]
[356130710,1741936872617,-500.0,0.00021999,3]
[356130711,1741936872668,-1299.64,0.00021999,3]
[356130712,1741936872719,-157.38744312,0.00021999,3]
[356130713,1741936872773,-831.57,0.00021999,3]
[356130714,1741936872824,-500.0,0.00021999,3]
[356130715,1741936872872,-500.0,0.00021999,3]
[356130716,1741936872919,-500.0,0.00021999,3]
[356130717,1741936872966,-500.0,0.00021999,3]
[356130718,1741936873016,-2030.3,0.00021999,3]
[356130719,1741936873063,-500.0,0.00021999,3]
[356130720,1741936873111,-3639.46,0.00021999,3]
[356130721,1741936873158,-500.0,0.00021999,3]
[356130722,1741936873205,-1846.63,0.00021999,3]
[356130723,1741936873251,-480.852658,0.00021999,3]
[356130724,1741936873299,-1224.97,0.00021999,3]
[356130725,1741936873346,-500.0,0.00021999,3]
[356130726,1741936873393,-1644.43,0.00021999,3]
[356130727,1741936873440,-875.7,0.00021999,3]
[356130728,1741936873489,-1493.72,0.00021999,3]
[356130729,1741936873536,-616.8,0.00021999,3]
[356130730,1741936873582,-500.0,0.00021999,3]
[356130731,1741936873631,-500.0,0.00021999,3]
[356130732,1741936873680,-500.0,0.00021999,3]
[356130733,1741936873730,-500.0,0.00021999,3]
[356130734,1741936873814,-534.7,0.00021999,3]
[356130735,1741936874113,-500.0,0.00021999,3]
[356130736,1741936874480,-528.18,0.00021999,3]
[356130737,1741936874818,-500.0,0.00021999,3]
[356130738,1741936875063,-1825.29,0.00021999,3]
[356130739,1741936875115,-500.0,0.00021999,3]
[356130740,1741936875165,-500.0,0.00021999,3]
[356130741,1741936875214,-500.0,0.00021999,3]
[356130742,1741936875263,-500.0,0.00021999,3]
[356130743,1741936875310,-500.0,0.00021999,3]
[356130744,1741936875359,-500.0,0.00021999,3]
[356130745,1741936875411,-500.0,0.00021999,3]
[356130746,1741936875460,-500.0,0.00021999,3]
[356130747,1741936875509,-500.0,0.00021999,3]
[356130748,1741936875557,-1450.38,0.00021999,3]
[356130749,1741936875604,-960.85,0.00021999,3]
[356130750,1741936875652,-500.0,0.00021999,3]
[356130751,1741936875704,-500.0,0.00021999,3]
[356130752,1741936875757,-2324.14,0.00021999,3]
[356130753,1741936875805,-500.0,0.00021999,3]
[356130754,1741936875856,-500.0,0.00021999,3]
[356130755,1741936875906,-910.74,0.00021999,3]
[356130756,1741936875955,-500.0,0.00021999,3]
[356130757,1741936876005,-601.73,0.00021999,3]
[356130758,1741936876056,-500.0,0.00021999,3]
[356130759,1741936876107,-151.0,0.00021999,7]
[356130760,1741936876156,-530.29,0.00021999,3]
[356130761,1741936876206,-1089.91,0.00021999,3]
[356130762,1741936876254,-500.0,0.00021999,3]
[356130763,1741936876303,-500.0,0.00021999,3]
[356130764,1741936876350,-561.64,0.00021999,3]
[356130765,1741936876398,-500.0,0.00021999,3]
[356130766,1741936876445,-500.0,0.00021999,3]
[356130767,1741936876492,-500.0,0.00021999,3]
[356130768,1741936876539,-500.0,0.00021999,3]
[356130769,1741936876586,-500.0,0.00021999,3]
[356130770,1741936876635,-500.0,0.00021999,3]
[356130771,1741936876684,-500.0,0.00021999,3]
[356130772,1741936876735,-500.0,0.00021999,3]
[356130773,1741936876785,-500.0,0.00021999,3]
[356130774,1741936876833,-500.0,0.00021999,3]
[356130775,1741936876881,-500.0,0.00021999,3]
[356130776,1741936876930,-614.74,0.00021999,3]
[356130777,1741936876980,-977.71,0.00021999,3]
[356130778,1741936877030,-500.0,0.00021999,2]
[356130779,1741936877078,-500.0,0.00021999,3]
[356130780,1741936877128,-500.0,0.00021999,3]
[356130781,1741936877228,-1144.59,0.00021999,3]
[356130782,1741936877275,-828.55,0.00021999,3]
[356130783,1741936877331,-500.0,0.00021999,3]
[356130784,1741936877380,-500.0,0.00021999,3]
[356130785,1741936877430,-523.87,0.00021999,3]
[356130786,1741936877476,-565.79,0.00021999,3]
[356130787,1741936877524,-602.5,0.00021999,3]
[356130788,1741936877570,-500.0,0.00021999,3]
[356130789,1741936877617,-500.0,0.00021999,3]
[356130790,1741936877664,-151.0,0.00021999,7]
[356130791,1741936877713,-500.0,0.00021999,3]
[356130792,1741936877760,-151.0,0.00021999,7]
[356130793,1741936877808,-500.0,0.00021999,3]
[356130794,1741936877860,-500.0,0.00021999,3]
[356130795,1741936877907,-1550.67,0.00021999,3]
[356130796,1741936877959,-500.0,0.00021999,3]
[356130797,1741936878007,-500.0,0.00021999,3]
[356130798,1741936878057,-700.51,0.00021999,3]
[356130799,1741936878106,-500.0,0.00021999,3]
[356130800,1741936878159,-500.0,0.00021999,3]
[356130801,1741936878207,-500.0,0.00021999,3]
[356130802,1741936878255,-500.0,0.00021999,3]
[356130803,1741936878301,-500.0,0.00021999,3]
[356130804,1741936878348,-500.0,0.00021999,3]
[356130805,1741936878393,-687.0,0.00021999,3]
[356130806,1741936878440,-500.0,0.00021999,3]
[356130807,1741936878485,-500.0,0.00021999,3]
[356130808,1741936878531,-500.0,0.00021999,3]
[356130809,1741936878575,-500.0,0.00021999,3]
[356130810,1741936878621,-500.0,0.00021999,3]
[356130811,1741936878669,-272.410329,0.00021999,7]
[356130812,1741936878716,-500.0,0.00021999,3]
[356130813,1741936878763,-500.0,0.00021999,3]
[356130814,1741936878813,-500.0,0.00021999,3]
[356130815,1741936878859,-500.0,0.00021999,3]
[356130816,1741936878905,-500.0,0.00021999,3]
[356130817,1741936878954,-500.0,0.00021999,3]
[356130818,1741936879004,-638.05097334,0.00021999,3]
[356130819,1741936879052,-817.75,0.00021999,3]
[356130820,1741936879102,-500.0,0.00021999,3]
[356130821,1741936879153,-820.47,0.00021999,3]
[356130822,1741936879203,-713.63,0.00021999,3]
[356130823,1741936879254,-151.0,0.00021999,7]
[356130824,1741936879309,-500.0,0.00021999,3]
[356130825,1741936879361,-500.0,0.00021999,3]
[356130826,1741936879410,-500.0,0.00021999,3]
[356130827,1741936879458,-500.0,0.00021999,3]
[356130828,1741936879506,-500.0,0.00021999,3]
[356130829,1741936879554,-500.0,0.00021999,3]
[356130830,1741936879603,-500.0,0.00021999,3]